Workbook

Sheet Ex 1 HDD
A1: Heating Degree Days | G1: Docket | I1: Dominion Energy Utah
A2: Source: Use data from cdxr01 | I2: Docket No. 19-057-01
I3: DEU Variance Exhibit
A7: Month/Year | B7: Actual | C7: IRP Forecast (Normal) | F7: Actual | G7: IRP Forecast (Normal)
A8: 2019-06-01 | B8: 33 | C8: 46.17 | D8: =B8-C8 -> -13.17 | F8: =B8 -> 33 | G8: =C8 -> 46.17
A9: 2019-07-01 | B9: 0 | C9: 2.08 | D9: =B9-C9 -> -2.08 | F9: =B9+F8 -> 33 | G9: =C9+G8 -> 48.25
A10: 2019-08-01 | B10: 0 | C10: 2.3 | D10: -2.3 | F10: 33 | G10: =C10+G9 -> 50.55
A11: 2019-09-01 | C11: 79.83 | D11: -79.83 | F11: 33 | G11: 130.38
A12: 2019-10-01 | C12: 374.12 | D12: -374.12 | F12: 33 | G12: 504.5
A13: 2019-11-01 | C13: 744.18 | D13: -744.18 | F13: 33 | G13: 1248.68
A14: 2019-12-01 | C14: 1070.32 | D14: -1070.32 | F14: 33 | G14: 2319
A15: 2020-01-01 | C15: 1096.15 | D15: -1096.15 | F15: 33 | G15: 3415.15
A16: 2020-02-01 | C16: 860 | D16: -860 | F16: 33 | G16: 4275.15
A17: 2020-03-01 | C17: 657.78 | D17: -657.78 | F17: 33 | G17: 4932.93
A18: 2020-04-01 | C18: 431.82 | D18: -431.82 | F18: 33 | G18: 5364.75
A19: 2020-05-01 | C19: 205.37 | D19: -205.37 | F19: 33 | G19: 5570.12
B20: =SUM(B8:B19) -> 33 | C20: =SUM(C8:C19) -> 5570.12 | D20: =SUM(D8:D19) -> -5537.12
G36: =4.08-3.28 -> 0.8 | H36: =3.86-3.59 -> 0.27

Sheet Exhibit 1.1
O31: ='Ex 1 HDD'!I3 -> DEU Variance Exhibit | P31: ='Ex 1 HDD'!I2 -> Docket No. 19-057-01 | Q31: ='Ex 1 HDD'!I1 -> Dominion Energy Utah
O32: 1.1

Sheet Exhibit 1.2
O31: ='Ex 1 HDD'!I3 -> DEU Variance Exhibit | P31: ='Ex 1 HDD'!I2 -> Docket No. 19-057-01 | Q31: ='Ex 1 HDD'!I1 -> Dominion Energy Utah
O32: 1.2

Sheet Exhibit 1.3
O31: ='Ex 1 HDD'!I3 -> DEU Variance Exhibit | P31: ='Ex 1 HDD'!I2 -> Docket No. 19-057-01 | Q31: ='Ex 1 HDD'!I1 -> Dominion Energy Utah
O32: 1.3

Sheet Ex 2 Clay Basin
A1: Clay Basin Ending Inventory (MDths)
M5: Plan Year 1 | N5: 1106
K6: Month/Year | L6: Month | M6: Inj | N6: With | O6: Total
A7: Month/Year | B7: Actual | C7: IRP Forecast (Normal) | E7: Actual | F7: Actual/1000 | H7: Actual | I7: Normal | O7: 2000
A8: 2019-06-01 | B8: =F8 -> 3477.596 | C8: =O8 -> 4700 | D8: =B8-C8 -> -1222.404 | E8: 3477596 | F8: =E8/1000 -> 3477.596 | H8: =F8 -> 3477.596 | I8: =C8 -> 4700 | K8: =A8 -> 2019-06-01 | L8: =O7 -> 2000 | M8: 2700 | N8: 0 | O8: =L8+M8-N8 -> 4700 | Q8: 123.428 | S8: =M8/30 -> 90 | U8: =(M8-N8)/30 -> 90
A9: 2019-07-01 | B9: =F9 -> 6286.77 | C9: =O9 -> 7474.17 | D9: -1187.4 | E9: 6286770 | F9: =E9/1000 -> 6286.77 | H9: =H8+F9 -> 9764.366 | I9: =C9+I8 -> 12174.17 | K9: =A9 -> 2019-07-01 | L9: =O8 -> 4700 | M9: 2774.17 | N9: 0 | O9: 7474.17 | Q9: 66.7795 | S9: =M9/31 -> 89.48935484 | U9: =(M9-N9)/31 -> 89.48935484
A10: 2019-08-01 | B10: =F10 -> 8985.496 | C10: 9954.17 | D10: -968.674 | E10: 8985496 | F10: 8985.496 | H10: =H9+F10 -> 18749.862 | I10: 22128.34 | K10: 2019-08-01 | L10: =O9 -> 7474.17 | M10: 2480 | N10: 0 | O10: 9954.17 | Q10: 19.9656 | S10: =M10/31 -> 80 | U10: =(M10-N10)/31 -> 80
A11: 2019-09-01 | B11: =F11 -> 0 | C11: 11187.6 | D11: -11187.6 | F11: 0 | H11: 18749.862 | I11: 33315.94 | K11: 2019-09-01 | L11: 9954.17 | M11: 1233.43 | N11: 0 | O11: 11187.6 | Q11: 0 | S11: 39.78806452 | U11: 39.78806452
A12: 2019-10-01 | B12: 0 | C12: 13000.005 | D12: -13000.005 | F12: 0 | H12: 18749.862 | I12: 46315.945 | K12: 2019-10-01 | L12: 11187.6 | M12: 1812.405 | N12: 0 | O12: 13000.005 | Q12: 0 | S12: 58.46467742 | U12: 58.46467742
A13: 2019-11-01 | B13: 0 | C13: 10542.677 | D13: -10542.677 | F13: 0 | H13: 18749.862 | I13: 56858.622 | K13: 2019-11-01 | L13: 13000.005 | M13: 0 | N13: 2457.328 | O13: 10542.677 | Q13: 0 | S13: 0 | U13: -79.26864516
A14: 2019-12-01 | B14: 0 | C14: 7100.631 | D14: -7100.631 | F14: 0 | H14: 18749.862 | I14: 63959.253 | K14: 2019-12-01 | L14: 10542.677 | M14: 0 | N14: 3442.046 | O14: 7100.631 | Q14: 3417.48 | S14: 0 | U14: -111.0337419
A15: 2020-01-01 | B15: 0 | C15: =O15 -> 3690.581 | D15: -3690.581 | F15: 0 | H15: 18749.862 | I15: 67649.834 | K15: 2020-01-01 | L15: 7100.631 | M15: 0 | N15: 3410.05 | O15: 3690.581 | Q15: 5311.68 | S15: 0 | U15: -110.0016129
A16: 2020-02-01 | B16: 0 | C16: =O16 -> 500.535 | F16: 0 | H16: 18749.862 | I16: 68150.369 | K16: 2020-02-01 | L16: 3690.581 | M16: 0 | N16: 3190.046 | O16: 500.535 | Q16: 3252.24 | S16: 0 | U16: -102.9047097
A17: 2020-03-01 | B17: 0 | C17: =O17 -> 500.535 | F17: 0 | H17: 18749.862 | I17: 68650.904 | K17: 2020-03-01 | L17: 500.535 | M17: 0 | N17: 0 | O17: 500.535 | Q17: 0 | S17: 0 | U17: 0
A18: 2020-04-01 | B18: =F18 -> 0 | C18: =O18 -> 500.535 | F18: 0 | H18: 18749.862 | I18: 69151.439 | K18: 2020-04-01 | L18: 500.535 | M18: 0 | N18: 0 | O18: 500.535 | Q18: 0 | S18: 0 | U18: 0
A19: 2020-05-01 | B19: =F19 -> 0 | C19: =O19 -> 1912.887 | F19: 0 | H19: 18749.862 | I19: 71064.326 | K19: 2020-05-01 | L19: 500.535 | M19: 1412.352 | N19: 0 | O19: 1912.887 | Q19: 0 | S19: 45.55974194 | U19: 45.55974194
M21: =SUM(M8:M19) -> 12412.357 | N21: =SUM(N8:N19) -> 12499.47 | O21: =SUM(N8:N19) -> 12499.47
J25: =O15 -> 3690.581 | M25: =M18/30 -> 0
H26: 1 | I26: =N16/29 -> 110.0015862 | J26: =J25-$I$26 -> 3580.579414
H27: 2 | J27: =J26-$I$26 -> 3470.577828
H28: 3 | J28: 3360.576241
H29: 4 | J29: 3250.574655
H30: 5 | J30: 3140.573069
H31: 6 | J31: 3030.571483
H32: 7 | J32: 2920.569897
H33: 8 | J33: 2810.56831
H34: 9 | J34: 2700.566724
H35: 10 | J35: 2590.565138
H36: 11 | J36: 2480.563552
H37: 12 | J37: 2370.561966
H38: 13 | J38: 2260.560379
H39: 14 | J39: 2150.558793
H40: 15 | J40: 2040.557207
H41: 16 | J41: =J40-$I$26 -> 1930.555621
H42: 17 | J42: 1820.554034
B43: 5626242 | C43: 8026685 | D43: 10622439 | E43: 12607382 | H43: 18 | J43: 1710.552448
E44: 12434437 | H44: 19 | J44: 1600.550862
E45: 10491542 | H45: 20 | J45: 1490.549276
H46: 21 | J46: 1380.54769
H47: 22 | J47: 1270.546103
H48: 23 | J48: 1160.544517
B49: 13419 | H49: 24 | J49: 1050.542931
B50: 0.2276 | H50: 25 | J50: 940.5413448
B51: =B49*B50 -> 3054.1644 | H51: 26 | J51: 830.5397586
H52: 27 | J52: 720.5381724
H53: 28 | J53: 610.5365862
H54: 29 | J54: 500.535
H55: 30
F58: June | G58: July | H58: August | I58: September | J58: October | K58: November | L58: December | M58: January | N58: February | O58: March | P58: April | Q58: May
F59: 4587175 | G59: 7350188 | H59: 10347695 | I59: 12594397 | J59: 12186418 | K59: =E13 -> 0 | L59: =E14 -> 0 | M59: =E15 -> 0 | N59: =E16 -> 0
E60: 0.4444444 | F60: =$E60*F$59/1000 -> 2038.744241 | G60: =$E60*G$59/1000 -> 3266.749896 | H60: 4598.975096 | I60: 5597.509218 | J60: 5416.185236 | K60: 0 | L60: 0 | M60: 0 | N60: 0
E61: 0.2777778 | F61: =$E61*F$59/1000 -> 1274.21538 | G61: 2041.719052 | H61: 2874.359952 | I61: 3498.443891 | J61: 3385.116382 | K61: 0 | L61: 0 | M61: 0 | N61: 0
E62: 0.2777778 | F62: 1274.21538 | G62: 2041.719052 | H62: 2874.359952 | I62: 3498.443891 | J62: 3385.116382 | K62: 0 | L62: 0 | M62: 0 | N62: 0
E63: =SUM(E60:E62) -> 1 | F63: =SUM(F60:F62) -> 4587.175 | G63: =SUM(G60:G62) -> 7350.188 | H63: 10347.695 | I63: 12594.397 | J63: 12186.418 | K63: 0 | L63: 0 | M63: 0 | N63: 0
F65: 13419
F66: =F60/$F$65 -> 0.1519296699 | G66: 0.2434421265 | H66: 0.3427211488 | I66: 0.4171331111 | J66: 0.4036206302 | K66: 0 | L66: 0 | M66: 0 | N66: 0
F67: =F61/$F$65 -> 0.09495606079 | G67: 0.1521513565 | H67: 0.2142007566 | I67: 0.2607082414 | J67: 0.2522629393 | K67: 0 | L67: 0 | M67: 0 | N67: 0
F68: =F62/$F$65 -> 0.09495606079 | G68: 0.1521513565 | H68: 0.2142007566 | I68: 0.2607082414 | J68: 0.2522629393 | K68: 0 | L68: 0 | M68: 0 | N68: 0
F69: =F63/$F$65 -> 0.3418417915 | G69: 0.5477448394 | H69: 0.7711226619 | I69: 0.9385495939 | J69: 0.9081465087 | K69: 0 | L69: 0 | M69: 0 | N69: 0
F72: 13419
F73: =F60/$F$65*100 -> 15.19296699 | G73: =G60/$F$65*100 -> 24.34421265 | H73: 34.27211488 | I73: 41.71331111 | J73: 40.36206302 | K73: 0 | L73: 0 | M73: 0 | N73: 0
F74: =F61/$F$65*100 -> 9.495606079 | G74: 15.21513565 | H74: 21.42007566 | I74: 26.07082414 | J74: 25.22629393 | K74: 0 | L74: 0 | M74: 0 | N74: 0
F75: =F62/$F$65*100 -> 9.495606079 | G75: 15.21513565 | H75: 21.42007566 | I75: 26.07082414 | J75: 25.22629393 | K75: 0 | L75: 0 | M75: 0 | N75: 0
F76: =F70/$F$65 -> 0 | G76: 0 | H76: 0 | I76: 0 | J76: 0 | K76: 0 | L76: 0 | M76: 0 | N76: 0

Sheet Ex 2 Aquifers
A1: Total Aquifer Storage Ending Inventory (MDths)
O4: 1082 | P4: 1106
H6: 1.055 | M6: Month/Year | N6: Month | O6: Inj | P6: With | Q6: Total
A7: Month/Year | B7: Actual | C7: IRP Forecast (Normal) | E7: Actual | F7: IRP Forecast (Normal) | H7: MCF | I7: DTH | J7: MDTH | Q7: 833 | U7: 497.538
A8: ='Ex 1 HDD'!$A$8 -> 2019-06-01 | B8: =J8 -> 492.156 | C8: =Q8 -> 833 | D8: =B8-C8 -> -340.844 | E8: =B8 -> 492.156 | F8: =C8 -> 833 | H8: =I8/$H$6 -> 466498.5782 | I8: 492156 | J8: =I8/1000 -> 492.156 | M8: =A8 -> 2019-06-01 | N8: =Q7 -> 833 | O8: 0 | P8: 0 | Q8: =N8+O8-P8 -> 833 | S8: 0 | U8: 365
A9: ='Ex 1 HDD'!$A$9 -> 2019-07-01 | B9: =J9 -> 611.739 | C9: =Q9 -> 833 | D9: =B9-C9 -> -221.261 | E9: =B9+E8 -> 1103.895 | F9: =C9+F8 -> 1666 | H9: =I9/$H$6 -> 579847.3934 | I9: 611739 | J9: =I9/1000 -> 611.739 | M9: =A9 -> 2019-07-01 | N9: =Q8 -> 833 | O9: 0 | P9: 0 | Q9: =N9+O9-P9 -> 833 | S9: 0 | U9: 12
A10: ='Ex 1 HDD'!$A$10 -> 2019-08-01 | B10: =J10 -> 606.922 | C10: 833 | D10: =B10-C10 -> -226.078 | E10: =B10+E9 -> 1710.817 | F10: 2499 | H10: 575281.5166 | I10: 606922 | J10: 606.922 | M10: 2019-08-01 | N10: =Q9 -> 833 | O10: 0 | P10: 0 | Q10: 833 | S10: 0 | U10: =SUM(U7:U9) -> 874.538
A11: ='Ex 1 HDD'!$A$11 -> 2019-09-01 | B11: =J11 -> 0 | C11: 915.586 | D11: =B11-C11 -> -915.586 | E11: =B11+E10 -> 1710.817 | F11: 3414.586 | H11: 0 | J11: 0 | M11: 2019-09-01 | N11: 833 | O11: 82.586 | P11: 0 | Q11: =N11+O11-P11 -> 915.586 | S11: 0
A12: ='Ex 1 HDD'!$A12 -> 2019-10-01 | B12: 0 | C12: 1801.552 | D12: -1801.552 | E12: 1710.817 | F12: 5216.138 | H12: 0 | J12: 0 | M12: 2019-10-01 | N12: 915.586 | O12: 885.966 | P12: 0 | Q12: =N12+O12-P12 -> 1801.552 | S12: 0
A13: ='Ex 1 HDD'!$A13 -> 2019-11-01 | B13: 0 | C13: 1928.338 | D13: -1928.338 | E13: 1710.817 | F13: 7144.476 | H13: 0 | J13: 0 | M13: 2019-11-01 | N13: 1801.552 | O13: 126.786 | P13: 0 | Q13: =N13+O13-P13 -> 1928.338 | S13: 0
A14: ='Ex 1 HDD'!$A14 -> 2019-12-01 | B14: 0 | C14: 1928.338 | D14: -1928.338 | E14: 1710.817 | F14: 9072.814 | H14: 0 | J14: 0 | M14: 2019-12-01 | N14: 1928.338 | O14: 0 | P14: 0 | Q14: =N14+O14-P14 -> 1928.338 | S14: 0
A15: ='Ex 1 HDD'!$A15 -> 2020-01-01 | B15: 0 | C15: 1744.315 | D15: -1744.315 | E15: 1710.817 | F15: 10817.129 | H15: 0 | J15: 0 | M15: 2020-01-01 | N15: 1928.338 | O15: 0 | P15: 184.023 | Q15: 1744.315 | S15: 143.71
A16: ='Ex 1 HDD'!$A16 -> 2020-02-01 | B16: 0 | C16: 1744.315 | D16: -1744.315 | E16: 1710.817 | F16: 12561.444 | H16: 0 | J16: =I16/1000 -> 0 | M16: 2020-02-01 | N16: 1744.315 | O16: 0 | P16: 0 | Q16: 1744.315 | S16: 0
A17: ='Ex 1 HDD'!$A17 -> 2020-03-01 | B17: 0 | C17: 822.415 | D17: -822.415 | E17: 1710.817 | F17: 13383.859 | H17: 0 | J17: =I17/1000 -> 0 | M17: 2020-03-01 | N17: 1744.315 | O17: 0 | P17: 921.9 | Q17: 822.415 | S17: 0
A18: ='Ex 1 HDD'!$A18 -> 2020-04-01 | B18: 0 | C18: 822.415 | D18: -822.415 | E18: 1710.817 | F18: 14206.274 | H18: 0 | J18: =I18/1000 -> 0 | M18: 2020-04-01 | N18: 822.415 | O18: 0 | P18: 0 | Q18: 822.415 | S18: 0
A19: ='Ex 1 HDD'!$A19 -> 2020-05-01 | B19: 0 | C19: 822.415 | D19: -822.415 | E19: 1710.817 | F19: 15028.689 | H19: 0 | J19: =I19/1000 -> 0 | M19: 2020-05-01 | N19: 822.415 | O19: 0 | P19: 0 | Q19: 822.415 | S19: 0
O20: =SUM(O8:O19) -> 1095.338 | P20: =SUM(P8:P19) -> 1105.923
B22: =SUM(B14:B16) -> 0 | C22: =SUM(C14:C16) -> 5416.968 | H22: 5 | I22: =H22*$H$6 -> 5.275 | O22: Inj | P22: With
H23: 6 | I23: =H23*$H$6 -> 6.33 | O23: 0 | P23: 0
H24: 7 | I24: =H24*$H$6 -> 7.385 | O24: 0 | P24: 0
H25: 8 | I25: =H25*$H$6 -> 8.44 | O25: 0 | P25: 0
O26: 0 | P26: 0
O27: 154.246 | P27: 0
O28: 0 | P28: 0
O29: 0 | P29: 331.744
O30: 0 | P30: 238.151
O31: 0 | P31: 0
O32: 0 | P32: 0
O33: 0 | P33: 0
O34: 0 | P34: 0
O35: 154.246 | P35: 569.895
A36: chalk | B36: 252153 | C36: 252153 | H36: Second | J36: First
A37: coal | B37: 648967 | C37: 648967 | H37: 1761005.049 | J37: 1761005.049
A38: leroy | B38: 774377 | C38: 774377 | H38: 1423780.049 | J38: 1423780.049
B39: =SUM(B36:B38) -> 1675497 | C39: =SUM(C36:C38) -> 1675497 | H39: 851240.0486 | J39: 851240.0486
H40: 1009513.049 | J40: 1009513.049
H41: 750042.0486 | J41: 750042.0486
F42: June | H42: 741193.0486 | J42: 741193.0486
F43: July | H43: 742210.0486 | J43: 742210.0486
F44: August | H44: 733274.0486 | J44: 733274.0486
F45: September | H45: 779680.0486 | J45: 824078.0486 | L45: =J45-H45 -> 44398
F46: October | H46: 1488952.049 | J46: 1533352.049 | L46: =J46-H46 -> 44400
F47: November | H47: 1625943.049 | J47: 1681681.049 | L47: =J47-H47 -> 55738
F48: December | H48: 1627170.049

Sheet Ex 2 Spire Storage West
O5: 1082 | P5: 1106
H6: 1000 | N6: Month | O6: Inj | P6: With | Q6: Total
A7: ='Ex 1 HDD'!A7 -> Month/Year | B7: Actual | C7: IRP Forecast (Normal) | D7: Days | E7: Daily Demand | G7: Actual Dth | H7: MDth | J7: Actual | K7: IRP Forecast (Normal) | Q7: 450
A8: ='Ex 1 HDD'!A8 -> 2019-06-01 | B8: =H8 -> 799.215 | C8: =Q8 -> 791.73 | D8: =DAY(EOMONTH(A8,0)) -> 30 | E8: =C8/D8 -> 26.391 | F8: =+B9-B8 -> 352.129 | G8: 799215 | H8: =G8/$H$6 -> 799.215 | J8: 949.736 | K8: =C8 -> 791.73 | M8: =A8 -> 2019-06-01 | N8: =Q7 -> 450 | O8: 341.73 | P8: 0 | Q8: =N8+O8-P8 -> 791.73
A9: ='Ex 1 HDD'!A9 -> 2019-07-01 | B9: =H9 -> 1151.344 | C9: =Q9 -> 1144.85 | D9: =DAY(EOMONTH(A9,0)) -> 31 | E9: =C9/D9 -> 36.93064516 | F9: =+B10-B9 -> 352.129 | G9: 1151344 | H9: =G9/$H$6 -> 1151.344 | J9: =B9+J8 -> 2101.08 | K9: =C9+K8 -> 1936.58 | M9: =A9 -> 2019-07-01 | N9: =Q8 -> 791.73 | O9: 353.12 | P9: 0 | Q9: 1144.85
A10: ='Ex 1 HDD'!A10 -> 2019-08-01 | B10: =H10 -> 1503.473 | C10: 1497.97 | D10: 31 | E10: 48.3216129 | G10: 1503473 | H10: 1503.473 | J10: 3604.553 | K10: 3434.55 | M10: 2019-08-01 | N10: =Q9 -> 1144.85 | O10: 353.12 | P10: 0 | Q10: 1497.97
A11: ='Ex 1 HDD'!A11 -> 2019-09-01 | B11: =G11 -> 0 | C11: 1838.871 | D11: 30 | E11: 61.2957 | H11: 0 | J11: 3604.553 | K11: 5273.421 | M11: 2019-09-01 | N11: 1497.97 | O11: 340.901 | P11: 0 | Q11: 1838.871
A12: ='Ex 1 HDD'!A12 -> 2019-10-01 | B12: 0 | C12: 2077.214 | D12: 31 | E12: 67.00690323 | H12: 0 | J12: 3604.553 | K12: 7350.635 | M12: 2019-10-01 | N12: 1838.871 | O12: 238.343 | P12: 0 | Q12: 2077.214
A13: ='Ex 1 HDD'!A13 -> 2019-11-01 | B13: 0 | C13: 1579.214 | D13: 30 | E13: 52.64046667 | H13: 0 | J13: 3604.553 | K13: 8929.849 | M13: 2019-11-01 | N13: 2077.214 | O13: 0 | P13: 498 | Q13: 1579.214
A14: ='Ex 1 HDD'!A14 -> 2019-12-01 | B14: 0 | C14: 1064.614 | D14: 31 | E14: 34.3423871 | H14: 0 | J14: 3604.553 | K14: 9994.463 | M14: 2019-12-01 | N14: 1579.214 | O14: 0 | P14: 514.6 | Q14: 1064.614
A15: ='Ex 1 HDD'!A15 -> 2020-01-01 | B15: 0 | C15: 550.014 | D15: 31 | E15: 17.7423871 | H15: 0 | J15: 3604.553 | K15: 10544.477 | M15: 2020-01-01 | N15: 1064.614 | O15: 0 | P15: 514.6 | Q15: 550.014
A16: ='Ex 1 HDD'!A16 -> 2020-02-01 | B16: 0 | C16: 68.614 | D16: 29 | E16: 2.366 | H16: 0 | J16: 3604.553 | K16: 10613.091 | M16: 2020-02-01 | N16: 550.014 | O16: 0 | P16: 481.4 | Q16: 68.614
A17: ='Ex 1 HDD'!A17 -> 2020-03-01 | B17: 0 | C17: 68.614 | D17: 31 | E17: 2.213354839 | H17: 0 | J17: 3604.553 | K17: 10681.705 | M17: 2020-03-01 | N17: 68.614 | O17: 0 | P17: 0 | Q17: 68.614
A18: ='Ex 1 HDD'!A18 -> 2020-04-01 | B18: 0 | C18: 404.075 | D18: 30 | E18: 13.46916667 | H18: 0 | J18: 3604.553 | K18: 11085.78 | M18: 2020-04-01 | N18: 68.614 | O18: 335.461 | P18: 0 | Q18: 404.075
A19: ='Ex 1 HDD'!A19 -> 2020-05-01 | B19: 0 | C19: 757.194 | D19: 31 | E19: 24.4256129 | H19: 0 | J19: 3604.553 | K19: 11842.974 | M19: 2020-05-01 | N19: 404.075 | O19: 353.119 | P19: 0 | Q19: 757.194
O21: =SUM(O8:O20) -> 2315.794 | P21: =SUM(O8:O19) -> 2315.794 | Q21: =SUM(P8:P19) -> 2008.6

Sheet Exhibit 2.1
U29: 6580 | V29: 8750 | W29: 10765
U30: 4140 | V30: 6429 | W30: 8565
O31: ='Exhibit 1.1'!O31 -> DEU Variance Exhibit | P31: ='Exhibit 1.1'!P31 -> Docket No. 19-057-01 | Q31: ='Exhibit 1.1'!Q31 -> Dominion Energy Utah | U31: =U29-U30 -> 2440 | V31: =V29-V30 -> 2321 | W31: =W29-W30 -> 2200
O32: 2.1

Sheet Exhibit 2.2
O31: ='Exhibit 1.1'!O31 -> DEU Variance Exhibit | P31: ='Exhibit 1.1'!P31 -> Docket No. 19-057-01 | Q31: ='Exhibit 1.1'!Q31 -> Dominion Energy Utah
O32: 2.2

Sheet Exhibit 2.3
O31: ='Exhibit 1.1'!O31 -> DEU Variance Exhibit | P31: ='Exhibit 1.1'!P31 -> Docket No. 19-057-01 | Q31: ='Exhibit 1.1'!Q31 -> Dominion Energy Utah
O32: 2.3

Sheet Exhibit 2.4
O31: ='Exhibit 1.1'!O31 -> DEU Variance Exhibit | P31: ='Exhibit 1.1'!P31 -> Docket No. 19-057-01 | Q31: ='Exhibit 1.1'!Q31 -> Dominion Energy Utah
O32: 2.4

Sheet Exhibit 2.5
O31: ='Exhibit 1.1'!O31 -> DEU Variance Exhibit | P31: ='Exhibit 1.1'!P31 -> Docket No. 19-057-01 | Q31: ='Exhibit 1.1'!Q31 -> Dominion Energy Utah
O32: 2.5

Sheet Exhibit 2.6
O31: ='Exhibit 1.1'!O31 -> DEU Variance Exhibit | P31: ='Exhibit 1.1'!P31 -> Docket No. 19-057-01 | Q31: ='Exhibit 1.1'!Q31 -> Dominion Energy Utah
O32: 2.6

Sheet Exhibit Firm Sales Volume
A1: Demand
A7: ='Ex 1 HDD'!A7 -> Month/Year | B7: Actual | C7: IRP Forecast (Normal) | D7: Days | E7: Daily Demand
A8: ='Ex 1 HDD'!A8 -> 2019-06-01 | B8: 3012.441136 | C8: 3304.855 | D8: =DAY(EOMONTH(A8,0)) -> 30 | E8: =C8/D8 -> 110.1618333
A9: ='Ex 1 HDD'!A9 -> 2019-07-01 | B9: 2628.233664 | C9: 2562.741 | D9: =DAY(EOMONTH(A9,0)) -> 31 | E9: =C9/D9 -> 82.66906452
A10: ='Ex 1 HDD'!A10 -> 2019-08-01 | B10: 2555.410614 | C10: 2567.743 | D10: 31 | E10: 82.83041935
A11: ='Ex 1 HDD'!A11 -> 2019-09-01 | C11: 3805.046 | D11: 30 | E11: 126.8348667
A12: ='Ex 1 HDD'!A12 -> 2019-10-01 | C12: 6734.668 | D12: 31 | E12: 217.2473548
A13: ='Ex 1 HDD'!A13 -> 2019-11-01 | C13: 12379.303 | D13: 30 | E13: 412.6434333
A14: ='Ex 1 HDD'!A14 -> 2019-12-01 | C14: 19403.76 | D14: 31 | E14: 625.9277419
A15: ='Ex 1 HDD'!A15 -> 2020-01-01 | C15: 20973.918 | D15: 31 | E15: 676.578
A16: ='Ex 1 HDD'!A16 -> 2020-02-01 | C16: 18183.889 | D16: 29 | E16: 627.0306552
A17: ='Ex 1 HDD'!A17 -> 2020-03-01 | C17: 14059.607 | D17: 31 | E17: 453.5357097
A18: ='Ex 1 HDD'!A18 -> 2020-04-01 | C18: 9342.528 | D18: 30 | E18: 311.4176
A19: ='Ex 1 HDD'!A19 -> 2020-05-01 | C19: 5780.501 | D19: 31 | E19: 186.4677742
C20: =SUM(C8:C19) -> 119098.559

Sheet Worksheet
A1: Firm Sales Variance: IRP First Quarter
A2: Data derived from Actual Dths in greybacks and IRP forecast.
F5: Cumulative
A6: Month/Year | B6: Actual | C6: IRP Forecast (Normal) | F6: Actual | G6: IRP Forecast (Normal)
A7: 2019-06-01 | B7: 3012.441136 | C7: 3304.855 | F7: =B7 -> 3012.441136 | G7: =C7 -> 3304.855
A8: 2019-07-01 | B8: 2628.233664 | C8: 2562.741 | F8: =F7+B8 -> 5640.6748 | G8: =G7+C8 -> 5867.596
A9: 2019-08-01 | B9: 2555.410614 | C9: 2567.743 | F9: =F8+B9 -> 8196.085414 | G9: 8435.339
A10: 2019-09-01 | B10: 0 | C10: 3805.046 | F10: 8196.085414 | G10: 12240.385
A11: 2019-10-01 | B11: 0 | C11: 6734.668 | F11: 8196.085414 | G11: 18975.053
A12: 2019-11-01 | B12: 0 | C12: 12379.303 | F12: 8196.085414 | G12: 31354.356
A13: 2019-12-01 | B13: 0 | C13: 19403.76 | F13: 8196.085414 | G13: 50758.116
A14: 2020-01-01 | B14: 0 | C14: 20973.918 | F14: 8196.085414 | G14: 71732.034
A15: 2020-02-01 | B15: 0 | C15: 18183.889 | F15: 8196.085414 | G15: 89915.923
A16: 2020-03-01 | B16: 0 | C16: 14059.607 | F16: 8196.085414 | G16: 103975.53
A17: 2020-04-01 | B17: 0 | C17: 9342.528 | F17: 8196.085414 | G17: 113318.058
A18: 2020-05-01 | B18: 0 | C18: 5780.501 | F18: 8196.085414 | G18: 119098.559
C23: 3330.263
C24: 2710.78
C25: 2511.888
C26: 2931.464
C27: 7012.06
C28: 12196.532
C29: 19288.345
C30: 20286.143
C31: 16955.002
C32: 13312.582
C33: 8841.492
C34: 5414.242

Sheet Exhibit 3.1
O31: DEU Variance Exhibit | P31: Docket No. 19-057-01 | Q31: Dominion Energy Utah
O32: 3.1

Sheet Exhibit 3.2
O31: DEU Variance Exhibit | P31: Docket No. 19-057-01 | Q31: Dominion Energy Utah
O32: 3.2

Sheet Exhibit 3.3
O31: DEU Variance Exhibit | P31: Docket No. 19-057-01 | Q31: Dominion Energy Utah
O32: 3.3

Sheet Exhibit 3.4
H1: Dominion Energy Utah
H2: Docket No. 19-057-01
H3: DEU Variance Exhibit 3.4
B6: IRP Variance
B8: Actual Results
C9: 2019-06-01 | E9: 2019-07-01 | G9: 2019-08-01
B10: SUPPLY | C10: Actual | D10: IRP Forecast (Normal) | E10: Actual | F10: IRP Forecast (Normal) | G10: Actual | H10: IRP Forecast (Normal)
A11: 1 | B11: Cost of Service Prod (Mbtu) | C11: 5977.337 | D11: 5747.91 | E11: 6115.594 | F11: 5860.652 | G11: 6095.23 | H11: 5556.345
A12: =A11+1 -> 2 | B12: Purchases (Mbtu) | C12: 0 | D12: 777.383 | E12: 0 | F12: 0 | G12: 0 | H12: 0
A13: 3 | B13: Clay Basin With (Mbtu) | C13: 0 | D13: 0 | E13: 0 | F13: 0 | G13: 0 | H13: 0
A14: 4 | B14: Acquifers With (Mbtu) | C14: 0.651 | D14: 0 | E14: 4.481 | F14: 0 | G14: 4.162 | H14: 0
A15: 5 | B15: Spire Storage West With (Mbtu) | C15: 0 | D15: 0 | E15: 0 | F15: 0 | G15: 0 | H15: 0
A16: 6 | B16: Off-System | C16: 23.91386 | D16: 43.686 | E16: 31.90002 | F16: 44.848 | G16: 27.91831 | H16: 44.583
A18: =A16+1 -> 7 | B18: Total Supply | C18: 6001.90186 | D18: 6568.979 | E18: 6151.97502 | F18: 5905.5 | G18: 6127.31031 | H18: 5600.928
B20: DEMAND
A21: =A18+1 -> 8 | B21: Firm Sales (Mbtu) | C21: 3012.441136 | D21: 3238.062 | E21: 2628.233664 | F21: 2499.365 | G21: 2555.410614 | H21: 2504.6
A22: =A21+1 -> 9 | B22: Interruptible Sales (Mbtu) | C22: 16.110752 | D22: 10.701 | E22: 14.440725 | F22: 9.511 | G22: 11.506601 | H22: 9.506
A23: 10 | B23: Clay Basin Inj (Mbtu) | C23: 2231.626 | D23: 2700 | E23: 2838.414 | F23: 2774.166 | G23: 2698.73 | H23: 2480
A24: =A23+1 -> 11 | B24: Acquifers Inj (Mbtu) | C24: 0.239 | D24: 0 | E24: 127.766 | F24: 0 | G24: 0.179 | H24: 0
A25: =A24+1 -> 12 | B25: Spire Storage West Inj (Mbtu) | C25: 35.759 | D25: 341.728 | E25: 352.129 | F25: 353.119 | G25: 352.129 | H25: 353.119
A26: 13 | B26: Off-System | C26: 23.91386 | D26: 41.472 | E26: 31.90002 | F26: 42.575 | G26: 27.91831 | H26: 42.324
A27: 14 | B27: Fuel | C27: 70.887 | D27: 222.395 | E27: 71.353 | F27: 215.473 | G27: 70.533 | H27: 200.067
A28: 15 | B28: Company Use / L&U | C28: 611.247 | D28: 14.62 | E28: 87.965 | F28: 11.29 | G28: 410.461 | H28: 11.313
A30: =A28+1 -> 16 | B30: Total Demand | C30: 6002.223748 | D30: 6568.978 | E30: 6152.201409 | F30: 5905.499 | G30: 6126.867525 | H30: 5600.929
A32: =A30+1 -> 17 | B32: Clay Basin Fuel Usage Adjustment | C32: -0.004 | D32: 0 | E32: -0.004 | F32: 0 | G32: -0.004 | H32: 0
A33: =A32+1 -> 18 | B33: Clay Basin Transfers | C33: 0 | D33: 0 | E33: -29.236 | F33: 0 | G33: 0 | H33: 0
A34: =A33+1 -> 19 | B34: Acquifers Fuel Usage Adjustment | C34: -1.376 | D34: 0 | E34: -3.702 | F34: 0 | G34: -0.834 | H34: 0
A35: =A34+1 -> 20 | B35: Acquifers Transfers | C35: 0 | D35: 0 | E35: 0 | F35: 0 | G35: 0 | H35: 0
A36: 21 | B36: Clay Basin Current Bal | C36: 3477.596 | D36: 3956.260804 | E36: 6286.77 | F36: 6124.620362 | G36: 8985.496 | H36: 8712.347291
A37: 22 | B37: Acquifers Current Bal | C37: 492.156 | D37: 799 | E37: 611.739 | F37: 799 | G37: 606.922 | H37: 799
A38: 23 | B38: Spire Storage West Current Bal | C38: 799.215 | D38: 952 | E38: 1151.344 | F38: 1302 | G38: 1503.473 | H38: 1658
A40: =+A38+1 -> 24 | B40: Purchases($/Dth) | C40: 0 | D40: 0 | E40: 0 | F40: 0 | G40: 0 | H40: 0
A41: =A40+1 -> 25 | B41: Purchases $ (000) | C41: 0 | D41: 0 | E41: 0 | F41: 0 | G41: 0 | H41: 0
B44: Variances
A45: =A41+1 -> 26 | B45: Cost of service volumes | C45: 229.427 | D45: 0 | E45: 254.942 | F45: 0 | G45: 538.885 | H45: 0
A46: =A45+1 -> 27 | B46: Purchase volumes | C46: 0 | D46: 0 | E46: 0 | F46: 0 | G46: 0 | H46: 0
A47: 28 | B47: Purchase $ Act over (under) IRP | C47: 0 | D47: 0 | E47: 0 | F47: 0 | G47: 0 | H47: 0
A48: 29 | B48: Purchase Variance | C48: 0 | D48: 0 | E48: 0 | F48: 0 | G48: 0 | H48: 0
A49: 30 | B49: $ Variance | C49: 0 | D49: 0 | E49: 0 | F49: 0 | G49: 0 | H49: 0
A50: 31 | B50: Check | C50: 0 | D50: 0 | E50: 0 | F50: 0 | G50: 0 | H50: 0
A51: 32 | B51: Quarter Variance | G51: 0
A52: 33 | B52: Purchase Variance | G52: 0
A53: 34 | B53: $ Variance | G53: 0
A54: 35 | B54: Check | G54: 0

Sheet Ex 4 Purchase Gas
A1: Purchase Gas Variance (Brady Included) MDths
G6: Cumulative
A7: Month/Year | B7: Actual | C7: IRP Forecast (Normal) | E7: Month/Year | F7: Actual | G7: IRP Forecast (Normal) | I7: Month/Year | J7: DTHS | K7: MDTHS | L7: $'S | M7: $1,000'S
A8: ='Ex 1 HDD'!A8 -> 2019-06-01 | B8: =K8 -> 0 | C8: 777.383 | E8: =A8 -> 2019-06-01 | F8: =K8 -> 0 | G8: =C8 -> 777.383 | I8: =A8 -> 2019-06-01 | J8: 0 | K8: =J8/1000 -> 0 | L8: 0 | M8: =L8/1000 -> 0
A9: ='Ex 1 HDD'!A9 -> 2019-07-01 | B9: =K9 -> 0 | C9: 0 | E9: 2019-07-01 | F9: =F8+K9 -> 0 | G9: =G8+C9 -> 777.383 | I9: 2019-07-01 | J9: 0 | K9: =J9/1000 -> 0 | L9: 0 | M9: 0
A10: ='Ex 1 HDD'!A10 -> 2019-08-01 | B10: 0 | C10: 0 | E10: 2019-08-01 | F10: 0 | G10: 777.383 | I10: 2019-08-01 | J10: 0 | K10: =J10/1000 -> 0 | L10: 0 | M10: 0
A11: ='Ex 1 HDD'!A11 -> 2019-09-01 | B11: 0 | C11: 0 | E11: 2019-09-01 | F11: 0 | G11: 777.383 | I11: 2019-09-01 | K11: 0 | M11: 0
A12: ='Ex 1 HDD'!A12 -> 2019-10-01 | B12: 0 | C12: 4222.72 | E12: 2019-10-01 | F12: 0 | G12: 5000.103 | I12: 2019-10-01 | K12: 0 | M12: 0
A13: ='Ex 1 HDD'!A13 -> 2019-11-01 | B13: 0 | C13: 4431.064 | E13: 2019-11-01 | F13: 0 | G13: 9431.167 | I13: 2019-11-01 | K13: 0 | M13: 0
A14: ='Ex 1 HDD'!A14 -> 2019-12-01 | B14: 0 | C14: 10225.63 | E14: 2019-12-01 | F14: 0 | G14: 19656.797 | I14: 2019-12-01 | K14: 0 | M14: 0
A15: ='Ex 1 HDD'!A15 -> 2020-01-01 | B15: 0 | C15: 11799.12 | E15: 2020-01-01 | F15: 0 | G15: 31455.917 | I15: 2020-01-01 | K15: 0 | M15: 0
A16: ='Ex 1 HDD'!A16 -> 2020-02-01 | B16: 0 | C16: 9734.01 | E16: 2020-02-01 | F16: 0 | G16: 41189.927 | I16: 2020-02-01 | K16: 0 | M16: 0
A17: ='Ex 1 HDD'!A17 -> 2020-03-01 | B17: 0 | C17: 8071.9 | E17: 2020-03-01 | F17: 0 | G17: 49261.827 | I17: 2020-03-01 | K17: 0 | M17: 0
A18: ='Ex 1 HDD'!A18 -> 2020-04-01 | B18: =K18 -> 0 | C18: 4812.29 | E18: 2020-04-01 | F18: 0 | G18: =G17+C18 -> 54074.117 | I18: 2020-04-01 | K18: 0 | M18: 0
A19: ='Ex 1 HDD'!A19 -> 2020-05-01 | B19: =K19 -> 0 | C19: 2600.38 | E19: 2020-05-01 | F19: 0 | G19: 56674.497 | I19: 2020-05-01 | K19: 0 | M19: 0
B21: =SUM(B8:B19) -> 0 | C21: =SUM(C8:C20) -> 56674.497
B23: =B16-B17 -> 0

Sheet Exhibit 4.1
O31: ='Exhibit 1.1'!O31 -> DEU Variance Exhibit | P31: ='Exhibit 1.1'!P31 -> Docket No. 19-057-01 | Q31: ='Exhibit 1.1'!Q31 -> Dominion Energy Utah
O32: 4.1

Sheet Exhibit 4.2
O30: ='Exhibit 1.1'!O31 -> DEU Variance Exhibit | P30: ='Exhibit 1.1'!P31 -> Docket No. 19-057-01 | Q30: ='Exhibit 1.1'!Q31 -> Dominion Energy Utah
O31: 4.2

Sheet Exhibit 4.3
O31: ='Exhibit 1.1'!O31 -> DEU Variance Exhibit | P31: ='Exhibit 1.1'!P31 -> Docket No. 19-057-01 | Q31: ='Exhibit 1.1'!Q31 -> Dominion Energy Utah
O32: 4.3

Sheet Ex 5 Purchase Gas Cost
A1: Purchase Gas Cost Variance ($1,000's)
E6: Cumulative
A7: Month/Year | B7: Actual | C7: IRP Forecast (Normal) | E7: Actual | F7: IRP Forecast (Normal)
A8: ='Ex 1 HDD'!A8 -> 2019-06-01 | B8: ='Ex 4 Purchase Gas'!M8 -> 0 | C8: 1683.728 | E8: =B8 -> 0 | F8: =C8 -> 1683.728
A9: ='Ex 1 HDD'!A9 -> 2019-07-01 | B9: ='Ex 4 Purchase Gas'!M9 -> 0 | C9: 0 | E9: =E8+B9 -> 0 | F9: =C9+F8 -> 1683.728
A10: ='Ex 1 HDD'!A10 -> 2019-08-01 | B10: ='Ex 4 Purchase Gas'!M10 -> 0 | C10: 0 | E10: 0 | F10: =C10+F9 -> 1683.728
A11: ='Ex 1 HDD'!A11 -> 2019-09-01 | B11: ='Ex 4 Purchase Gas'!M11 -> 0 | C11: 0 | E11: 0 | F11: 1683.728
A12: ='Ex 1 HDD'!A12 -> 2019-10-01 | B12: ='Ex 4 Purchase Gas'!M12 -> 0 | C12: 9736.989 | E12: 0 | F12: 11420.717
A13: ='Ex 1 HDD'!A13 -> 2019-11-01 | B13: ='Ex 4 Purchase Gas'!M13 -> 0 | C13: 11571.04 | E13: 0 | F13: 22991.757
A14: ='Ex 1 HDD'!A14 -> 2019-12-01 | B14: ='Ex 4 Purchase Gas'!M14 -> 0 | C14: 28566.21 | E14: 0 | F14: 51557.967
A15: ='Ex 1 HDD'!A15 -> 2020-01-01 | B15: ='Ex 4 Purchase Gas'!M15 -> 0 | C15: 34169.18 | E15: 0 | F15: 85727.147
A16: ='Ex 1 HDD'!A16 -> 2020-02-01 | B16: ='Ex 4 Purchase Gas'!M16 -> 0 | C16: 25996.64 | E16: 0 | F16: 111723.787
A17: ='Ex 1 HDD'!A17 -> 2020-03-01 | B17: ='Ex 4 Purchase Gas'!M17 -> 0 | C17: 18934.53 | E17: 0 | F17: 130658.317
A18: ='Ex 1 HDD'!A18 -> 2020-04-01 | B18: ='Ex 4 Purchase Gas'!M18 -> 0 | C18: 9572.055 | E18: 0 | F18: 140230.372
A19: ='Ex 1 HDD'!A19 -> 2020-05-01 | B19: ='Ex 4 Purchase Gas'!M19 -> 0 | C19: 5027.897 | E19: 0 | F19: 145258.269
C21: =SUM(C8:C19) -> 145258.269

Sheet Exhibit 5.1
O31: ='Exhibit 1.1'!O31 -> DEU Variance Exhibit | P31: ='Exhibit 1.1'!P31 -> Docket No. 19-057-01 | Q31: ='Exhibit 1.1'!Q31 -> Dominion Energy Utah
O32: 5.1

Sheet Exhibit 5.2
O32: ='Exhibit 1.1'!O31 -> DEU Variance Exhibit | P32: ='Exhibit 1.1'!P31 -> Docket No. 19-057-01 | Q32: ='Exhibit 1.1'!Q31 -> Dominion Energy Utah
O33: 5.2

Sheet Exhibit 5.3
O31: ='Exhibit 1.1'!O31 -> DEU Variance Exhibit | P31: ='Exhibit 1.1'!P31 -> Docket No. 19-057-01 | Q31: ='Exhibit 1.1'!Q31 -> Dominion Energy Utah
O32: 5.3

Sheet Ex 6 Purch Gas Unit Cost
A1: Purchase Gas Unit Cost Variance ($1,000's)
E6: Actual | F6: Actual | G6: Actual | I6: Normal | J6: Normal | K6: Normal
A7: Month/Year | B7: Actual $/Dth | C7: IRP Forecast (Normal) $/Dth | E7: Dth | F7: Cost | G7: $/Dth | I7: Dth | J7: Cost | K7: $/Dth | M7: May Forward Strip
A8: ='Ex 1 HDD'!A8 -> 2019-06-01 | B8: =G8 -> 0 | C8: =K8 -> 2.165892488 | E8: ='Ex 4 Purchase Gas'!B8 -> 0 | F8: ='Ex 4 Purchase Gas'!M8 -> 0 | G8: =IFERROR(F8/E8,0) -> 0 | I8: ='Ex 4 Purchase Gas'!C8 -> 777.383 | J8: ='Ex 5 Purchase Gas Cost'!C8 -> 1683.728 | K8: =IFERROR(J8/I8,0) -> 2.165892488 | M8: 2.17
A9: ='Ex 1 HDD'!A9 -> 2019-07-01 | B9: 0 | C9: 0 | E9: ='Ex 4 Purchase Gas'!B9 -> 0 | F9: ='Ex 4 Purchase Gas'!M9 -> 0 | G9: =IFERROR(F9/E9,0) -> 0 | I9: ='Ex 4 Purchase Gas'!C9 -> 0 | J9: ='Ex 5 Purchase Gas Cost'!C9 -> 0 | K9: =IFERROR(J9/I9,0) -> 0 | M9: 2.49
A10: ='Ex 1 HDD'!A10 -> 2019-08-01 | B10: 0 | C10: 0 | E10: ='Ex 4 Purchase Gas'!B10 -> 0 | F10: ='Ex 4 Purchase Gas'!M10 -> 0 | G10: 0 | I10: ='Ex 4 Purchase Gas'!C10 -> 0 | J10: ='Ex 5 Purchase Gas Cost'!C10 -> 0 | K10: 0 | M10: 2.6
A11: ='Ex 1 HDD'!A11 -> 2019-09-01 | B11: 0 | C11: =K11 -> 0 | E11: ='Ex 4 Purchase Gas'!B11 -> 0 | F11: ='Ex 4 Purchase Gas'!M11 -> 0 | G11: 0 | I11: ='Ex 4 Purchase Gas'!C11 -> 0 | J11: ='Ex 5 Purchase Gas Cost'!C11 -> 0 | K11: 0 | M11: 2.4
A12: ='Ex 1 HDD'!A12 -> 2019-10-01 | B12: 0 | C12: =K12 -> 2.305857125 | E12: ='Ex 4 Purchase Gas'!B12 -> 0 | F12: ='Ex 4 Purchase Gas'!M12 -> 0 | G12: 0 | I12: ='Ex 4 Purchase Gas'!C12 -> 4222.72 | J12: ='Ex 5 Purchase Gas Cost'!C12 -> 9736.989 | K12: 2.305857125 | M12: 2.3
A13: ='Ex 1 HDD'!A13 -> 2019-11-01 | B13: 0 | C13: 2.611345717 | E13: ='Ex 4 Purchase Gas'!B13 -> 0 | F13: ='Ex 4 Purchase Gas'!M13 -> 0 | G13: 0 | I13: ='Ex 4 Purchase Gas'!C13 -> 4431.064 | J13: ='Ex 5 Purchase Gas Cost'!C13 -> 11571.04 | K13: 2.611345717 | M13: 2.64
A14: ='Ex 1 HDD'!A14 -> 2019-12-01 | B14: 0 | C14: 2.793589246 | E14: ='Ex 4 Purchase Gas'!B14 -> 0 | F14: ='Ex 4 Purchase Gas'!M14 -> 0 | G14: 0 | I14: ='Ex 4 Purchase Gas'!C14 -> 10225.63 | J14: ='Ex 5 Purchase Gas Cost'!C14 -> 28566.21 | K14: 2.793589246 | M14: 2.84
A15: ='Ex 1 HDD'!A15 -> 2020-01-01 | B15: 0 | C15: 2.895909186 | E15: ='Ex 4 Purchase Gas'!B15 -> 0 | F15: ='Ex 4 Purchase Gas'!M15 -> 0 | G15: 0 | I15: ='Ex 4 Purchase Gas'!C15 -> 11799.12 | J15: ='Ex 5 Purchase Gas Cost'!C15 -> 34169.18 | K15: 2.895909186 | M15: 2.92
A16: ='Ex 1 HDD'!A16 -> 2020-02-01 | B16: 0 | C16: 2.670702003 | E16: ='Ex 4 Purchase Gas'!B16 -> 0 | F16: ='Ex 4 Purchase Gas'!M16 -> 0 | G16: 0 | I16: ='Ex 4 Purchase Gas'!C16 -> 9734.01 | J16: ='Ex 5 Purchase Gas Cost'!C16 -> 25996.64 | K16: 2.670702003 | M16: 2.71
A17: ='Ex 1 HDD'!A17 -> 2020-03-01 | B17: 0 | C17: 2.345733966 | E17: ='Ex 4 Purchase Gas'!B17 -> 0 | F17: ='Ex 4 Purchase Gas'!M17 -> 0 | G17: 0 | I17: ='Ex 4 Purchase Gas'!C17 -> 8071.9 | J17: ='Ex 5 Purchase Gas Cost'!C17 -> 18934.53 | K17: 2.345733966 | M17: 2.39
A18: ='Ex 1 HDD'!A18 -> 2020-04-01 | B18: 0 | C18: 1.989085238 | E18: ='Ex 4 Purchase Gas'!B18 -> 0 | F18: ='Ex 4 Purchase Gas'!M18 -> 0 | G18: 0 | I18: ='Ex 4 Purchase Gas'!C18 -> 4812.29 | J18: ='Ex 5 Purchase Gas Cost'!C18 -> 9572.055 | K18: 1.989085238 | M18: 2.03
A19: ='Ex 1 HDD'!A19 -> 2020-05-01 | B19: 0 | C19: 1.933523947 | E19: ='Ex 4 Purchase Gas'!B19 -> 0 | F19: ='Ex 4 Purchase Gas'!M19 -> 0 | G19: 0 | I19: ='Ex 4 Purchase Gas'!C19 -> 2600.38 | J19: ='Ex 5 Purchase Gas Cost'!C19 -> 5027.897 | K19: 1.933523947 | M19: 2.02
A47: 2017-10-26 | B47: Unit Cost per Decatherm | C47: The Purchase Gas Unit Cost is usually a calculated value. That value is derived from purchase dollars divided by purchase decatherms. Columns I - K show those decatherms, costs and calculated Unit costs. In the unusual case of summer 2017 the model used no spot gas during the summer and so incurred zero purchased volumes and zero associated costs making the Unit cost also zero. If purchase volumes had been incurred then the question arrises as to what value should be used as the "model" unit cost value. - Zero could have been reasonably used because the model had no volumes or costs, even though the actual usage may have had volumes. (In this case it did not.) - The May forward strip could have been used because that was the best guess for monthly prices at the time the model was created - Some actual value from each month could have also been used as a filler.

Sheet Exhibit 6.1
O31: ='Exhibit 1.1'!O31 -> DEU Variance Exhibit | P31: ='Exhibit 1.1'!P31 -> Docket No. 19-057-01 | Q31: ='Exhibit 1.1'!Q31 -> Dominion Energy Utah
O32: 6.1

Sheet Exhibit 6.2
O31: ='Exhibit 1.1'!O31 -> DEU Variance Exhibit | P31: ='Exhibit 1.1'!P31 -> Docket No. 19-057-01 | Q31: ='Exhibit 1.1'!Q31 -> Dominion Energy Utah
O32: 6.2

Sheet Ex 7 Co. Owned Gas
A1: Cost-of-Service Gas Variance (MDths)
H6: Cumulative
A7: Month/Year | B7: Actual | C7: IRP Forecast (Normal) | D7: Full Production | E7: Shut-in Est. Month | F7: Shut-in Daily | H7: Actual | I7: IRP Forecast (Normal) | K7: Days in Mo. | L7: Dthms | M7: Dthms/Day
A8: ='Ex 1 HDD'!A8 -> 2019-06-01 | B8: 5977.337 | C8: 5747.91 | D8: 5747.91 | E8: =D8-C8 -> 0 | F8: =(E8/30)*1000 -> 0 | H8: =B8 -> 5977.337 | I8: =C8 -> 5747.91 | K8: =DAY(EOMONTH(A8,0)) -> 30 | L8: =C8 -> 5747.91 | M8: =L8/K8 -> 191.597 | Q8: 5754.478384
A9: ='Ex 1 HDD'!A9 -> 2019-07-01 | B9: 6115.594 | C9: 5860.656 | D9: 5860.656 | E9: 0 | F9: =(E9/30)*1000 -> 0 | H9: =H8+B9 -> 12092.931 | I9: =I8+C9 -> 11608.566 | K9: =DAY(EOMONTH(A9,0)) -> 31 | L9: =C9 -> 5860.656 | M9: =L9/K9 -> 189.0534194 | Q9: 5867.413019
A10: ='Ex 1 HDD'!A10 -> 2019-08-01 | B10: 6095.23 | C10: 5556.347 | D10: 5980.08305 | E10: 423.7360502 | F10: 14124.53501 | H10: 18188.161 | I10: 17164.913 | K10: 31 | L10: 5556.347 | M10: 179.237 | Q10: 5986.085205
A11: ='Ex 1 HDD'!A11 -> 2019-09-01 | C11: 5611.687 | D11: 5611.687 | E11: 0 | F11: 0 | H11: 18188.161 | I11: 22776.6 | K11: 30 | L11: 5611.687 | M11: 187.0562333 | Q11: 5618.719149
A12: ='Ex 1 HDD'!A12 -> 2019-10-01 | C12: 5658.224 | D12: 5658.224 | E12: 0 | F12: 0 | H12: 18188.161 | I12: 28434.824 | K12: 31 | L12: 5658.224 | M12: 182.5233548 | Q12: 5665.433802
A13: ='Ex 1 HDD'!A13 -> 2019-11-01 | C13: 5360.505 | D13: 5360.505 | E13: 0 | F13: 0 | H13: 18188.161 | I13: 33795.329 | K13: 30 | L13: 5360.505 | M13: 178.6835 | Q13: 5366.261282
A14: ='Ex 1 HDD'!A14 -> 2019-12-01 | C14: 5562.662 | D14: 5562.662 | E14: 0 | F14: 0 | H14: 18188.161 | I14: 39357.991 | K14: 31 | L14: 5562.662 | M14: 179.4407097 | Q14: 5567.876643
A15: ='Ex 1 HDD'!A15 -> 2020-01-01 | C15: 5433.616 | D15: 5433.616 | E15: 0 | F15: 0 | H15: 18188.161 | I15: 44791.607 | K15: 31 | L15: 5433.616 | M15: 175.2779355 | Q15: 5438.795676
A16: ='Ex 1 HDD'!A16 -> 2020-02-01 | C16: 5096.209 | D16: 5096.209 | E16: 0 | F16: 0 | H16: 18188.161 | I16: 49887.816 | K16: 29 | L16: 5096.209 | M16: 175.7313448 | Q16: 5101.590072
A17: ='Ex 1 HDD'!A17 -> 2020-03-01 | C17: 5320.388 | D17: 5320.388 | E17: 0 | F17: 0 | H17: 18188.161 | I17: 55208.204 | K17: 31 | L17: 5320.388 | M17: 171.6254194 | Q17: 5326.091886
A18: ='Ex 1 HDD'!A18 -> 2020-04-01 | C18: 5046.084 | D18: 5046.084 | E18: 0 | F18: 0 | H18: 18188.161 | I18: 60254.288 | K18: 30 | L18: 5046.084 | M18: 168.2028 | Q18: 5051.585887
A19: ='Ex 1 HDD'!A19 -> 2020-05-01 | C19: 5120.67 | D19: 5120.67 | E19: 0 | F19: =(E19/30)*1000 -> 0 | H19: 18188.161 | I19: 65374.958 | K19: 31 | L19: 5120.67 | M19: 165.1829032 | Q19: 5126.305828
B21: =SUM(B8:B19) -> 18188.161 | C21: =SUM(C8:C19) -> 65374.958 | D21: =SUM(D8:D19) -> 65798.69405

Sheet Exhibit 7.1
O32: ='Exhibit 1.1'!O31 -> DEU Variance Exhibit | P32: ='Exhibit 1.1'!P31 -> Docket No. 19-057-01 | Q32: ='Exhibit 1.1'!Q31 -> Dominion Energy Utah
O33: 7.1

Sheet Exhibit 7.2
O31: ='Exhibit 1.1'!O31 -> DEU Variance Exhibit | P31: ='Exhibit 1.1'!P31 -> Docket No. 19-057-01 | Q31: ='Exhibit 1.1'!Q31 -> Dominion Energy Utah
O32: 7.2

Sheet Exhibit 7.3
O31: ='Exhibit 1.1'!O31 -> DEU Variance Exhibit | P31: ='Exhibit 1.1'!P31 -> Docket No. 19-057-01 | Q31: ='Exhibit 1.1'!Q31 -> Dominion Energy Utah
O32: 7.3

Sheet Ex 8 New Drill
A1: Isolated New Drill Component (MDths)
J6: Cumulative | L6: Cumulative
A7: Month/Year | B7: ND Actual | C7: ND IRP Forecast (Normal) | D7: Legacy Actual | E7: Legacy IRP Forecast (Normal) | H7: Prod Actual | I7: Prod Normal | J7: ND Actual | K7: ND IRP Forecast (Normal) | L7: Legacy Actual | M7: Legacy IRP Forecast (Normal)
A8: ='Ex 1 HDD'!A8 -> 2019-06-01 | B8: 131.356 | C8: 214.347 | D8: =H8-B8 -> 5845.981 | E8: =I8-C8 -> 5533.563 | H8: ='Ex 7 Co. Owned Gas'!B8 -> 5977.337 | I8: ='Ex 7 Co. Owned Gas'!C8 -> 5747.91 | J8: =B8 -> 131.356 | K8: =C8 -> 214.347 | L8: =D8 -> 5845.981 | M8: =E8 -> 5533.563
A9: ='Ex 1 HDD'!A9 -> 2019-07-01 | B9: 118.494 | C9: 255.97 | D9: 5997.1 | E9: 5604.686 | H9: ='Ex 7 Co. Owned Gas'!B9 -> 6115.594 | I9: ='Ex 7 Co. Owned Gas'!C9 -> 5860.656 | J9: =B8+B9 -> 249.85 | K9: =K8+C9 -> 470.317 | L9: 11843.081 | M9: 11138.249
A10: ='Ex 1 HDD'!A10 -> 2019-08-01 | B10: 107.493 | C10: 223.128 | D10: 5987.737 | E10: 5333.219 | H10: ='Ex 7 Co. Owned Gas'!B10 -> 6095.23 | I10: ='Ex 7 Co. Owned Gas'!C10 -> 5556.347 | J10: =J9+B10 -> 357.343 | K10: 693.445 | L10: 17830.818 | M10: 16471.468
A11: ='Ex 1 HDD'!A11 -> 2019-09-01 | B11: 0 | C11: 386.985 | D11: 0 | E11: 5224.702 | H11: ='Ex 7 Co. Owned Gas'!B11 -> 0 | I11: ='Ex 7 Co. Owned Gas'!C11 -> 5611.687 | J11: 357.343 | K11: =K10+C11 -> 1080.43 | L11: =L10+D11 -> 17830.818 | M11: =M10+E11 -> 21696.17
A12: ='Ex 1 HDD'!A12 -> 2019-10-01 | B12: 0 | C12: 349.534 | D12: 0 | E12: 5308.69 | H12: ='Ex 7 Co. Owned Gas'!B12 -> 0 | I12: ='Ex 7 Co. Owned Gas'!C12 -> 5658.224 | J12: 357.343 | K12: 1429.964 | L12: =L11+D12 -> 17830.818 | M12: 27004.86
A13: ='Ex 1 HDD'!A13 -> 2019-11-01 | B13: 0 | C13: 303.342 | D13: 0 | E13: 5057.163 | H13: ='Ex 7 Co. Owned Gas'!B13 -> 0 | I13: ='Ex 7 Co. Owned Gas'!C13 -> 5360.505 | J13: 357.343 | K13: 1733.306 | L13: 17830.818 | M13: 32062.023
A14: ='Ex 1 HDD'!A14 -> 2019-12-01 | B14: 0 | C14: 414.43 | D14: 0 | E14: 5148.232 | H14: ='Ex 7 Co. Owned Gas'!B14 -> 0 | I14: ='Ex 7 Co. Owned Gas'!C14 -> 5562.662 | J14: 357.343 | K14: 2147.736 | L14: 17830.818 | M14: 37210.255
A15: ='Ex 1 HDD'!A15 -> 2020-01-01 | B15: 0 | C15: 365.437 | D15: 0 | E15: 5068.179 | H15: ='Ex 7 Co. Owned Gas'!B15 -> 0 | I15: ='Ex 7 Co. Owned Gas'!C15 -> 5433.616 | J15: 357.343 | K15: 2513.173 | L15: 17830.818 | M15: 42278.434
A16: ='Ex 1 HDD'!A16 -> 2020-02-01 | B16: 0 | C16: 430.206 | D16: 0 | E16: 4666.003 | H16: ='Ex 7 Co. Owned Gas'!B16 -> 0 | I16: ='Ex 7 Co. Owned Gas'!C16 -> 5096.209 | J16: 357.343 | K16: 2943.379 | L16: 17830.818 | M16: 46944.437
A17: ='Ex 1 HDD'!A17 -> 2020-03-01 | B17: 0 | C17: 406.838 | D17: 0 | E17: 4913.55 | H17: ='Ex 7 Co. Owned Gas'!B17 -> 0 | I17: ='Ex 7 Co. Owned Gas'!C17 -> 5320.388 | J17: 357.343 | K17: 3350.217 | L17: 17830.818 | M17: 51857.987
A18: ='Ex 1 HDD'!A18 -> 2020-04-01 | B18: 0 | C18: 357.975 | D18: 0 | E18: 4688.109 | H18: ='Ex 7 Co. Owned Gas'!B18 -> 0 | I18: ='Ex 7 Co. Owned Gas'!C18 -> 5046.084 | J18: 357.343 | K18: 3708.192 | L18: 17830.818 | M18: 56546.096
A19: ='Ex 1 HDD'!A19 -> 2020-05-01 | B19: 0 | C19: 341.748 | D19: 0 | E19: 4778.922 | H19: ='Ex 7 Co. Owned Gas'!B19 -> 0 | I19: ='Ex 7 Co. Owned Gas'!C19 -> 5120.67 | J19: 357.343 | K19: 4049.94 | L19: 17830.818 | M19: 61325.018

Sheet Exhibit 8.1
O31: ='Exhibit 1.1'!O31 -> DEU Variance Exhibit | P31: ='Exhibit 1.1'!P31 -> Docket No. 19-057-01 | Q31: ='Exhibit 1.1'!Q31 -> Dominion Energy Utah
O32: 8.1

Sheet Exhibit 8.2
O31: ='Exhibit 1.1'!O31 -> DEU Variance Exhibit | P31: ='Exhibit 1.1'!P31 -> Docket No. 19-057-01 | Q31: ='Exhibit 1.1'!Q31 -> Dominion Energy Utah
O32: 8.2

Sheet Exhibit 8.3
O31: ='Exhibit 1.1'!O31 -> DEU Variance Exhibit | P31: ='Exhibit 1.1'!P31 -> Docket No. 19-057-01 | Q31: ='Exhibit 1.1'!Q31 -> Dominion Energy Utah
O32: 8.3

Sheet Normal Purchase % (hidden)
A2: Source: The whole numbers come from Purchase Gas and Company Owned Gas sheets. The percentages are then calculated from those numbers.
B3: 2 | C3: 3 | D3: 4 | E3: 5 | F3: 6 | G3: 7 | H3: 8 | I3: 9
A4: Month | B4: Actual Purchase Mdth | C4: Normal Purchase Mdth | D4: Actual Company Mdth | E4: Normal Company Mdths | F4: Actual Purchase as Percent of Total | G4: Normal Purchase as Percent of Total | H4: Actual Cost-of-Service as Percent of Total | I4: Normal Cost-of-Service as Percent of Total | K4: Check Should = 100% | L4: Check Should = 100%
A5: ='Ex 1 HDD'!A8 -> 2019-06-01 | B5: ='Ex 4 Purchase Gas'!B8 -> 0 | C5: ='Ex 4 Purchase Gas'!C8 -> 777.383 | D5: ='Ex 7 Co. Owned Gas'!B8 -> 5977.337 | E5: ='Ex 7 Co. Owned Gas'!C8 -> 5747.91 | F5: =IFERROR(B5/(B5+D5),0) -> 0 | G5: =C5/(C5+E5) -> 0.1191338075 | H5: =IFERROR(D5/(D5+B5),0) -> 1 | I5: =E5/(E5+C5) -> 0.8808661925 | K5: =F5+H5 -> 1 | L5: =G5+I5 -> 1
A6: ='Ex 1 HDD'!A9 -> 2019-07-01 | B6: ='Ex 4 Purchase Gas'!B9 -> 0 | C6: ='Ex 4 Purchase Gas'!C9 -> 0 | D6: ='Ex 7 Co. Owned Gas'!B9 -> 6115.594 | E6: ='Ex 7 Co. Owned Gas'!C9 -> 5860.656 | F6: =IFERROR(B6/(B6+D6),0) -> 0 | G6: 0 | H6: =IFERROR(D6/(D6+B6),0) -> 1 | I6: 1 | K6: 1 | L6: 1
A7: ='Ex 1 HDD'!A10 -> 2019-08-01 | B7: ='Ex 4 Purchase Gas'!B10 -> 0 | C7: ='Ex 4 Purchase Gas'!C10 -> 0 | D7: ='Ex 7 Co. Owned Gas'!B10 -> 6095.23 | E7: ='Ex 7 Co. Owned Gas'!C10 -> 5556.347 | F7: 0 | G7: 0 | H7: 1 | I7: 1 | K7: 1 | L7: 1
A8: ='Ex 1 HDD'!A11 -> 2019-09-01 | B8: ='Ex 4 Purchase Gas'!B11 -> 0 | C8: ='Ex 4 Purchase Gas'!C11 -> 0 | D8: ='Ex 7 Co. Owned Gas'!B11 -> 0 | E8: ='Ex 7 Co. Owned Gas'!C11 -> 5611.687 | F8: 0 | G8: 0 | H8: 0 | I8: 1 | K8: 0 | L8: 1
A9: ='Ex 1 HDD'!A12 -> 2019-10-01 | B9: ='Ex 4 Purchase Gas'!B12 -> 0 | C9: ='Ex 4 Purchase Gas'!C12 -> 4222.72 | D9: ='Ex 7 Co. Owned Gas'!B12 -> 0 | E9: ='Ex 7 Co. Owned Gas'!C12 -> 5658.224 | F9: 0 | G9: 0.4273599769 | H9: 0 | I9: 0.5726400231 | K9: 0 | L9: 1
A10: ='Ex 1 HDD'!A13 -> 2019-11-01 | B10: ='Ex 4 Purchase Gas'!B13 -> 0 | C10: ='Ex 4 Purchase Gas'!C13 -> 4431.064 | D10: ='Ex 7 Co. Owned Gas'!B13 -> 0 | E10: ='Ex 7 Co. Owned Gas'!C13 -> 5360.505 | F10: 0 | G10: 0.4525387096 | H10: 0 | I10: 0.5474612904 | K10: =F10+H10 -> 0 | L10: 1
A11: ='Ex 1 HDD'!A14 -> 2019-12-01 | B11: ='Ex 4 Purchase Gas'!B14 -> 0 | C11: ='Ex 4 Purchase Gas'!C14 -> 10225.63 | D11: ='Ex 7 Co. Owned Gas'!B14 -> 0 | E11: ='Ex 7 Co. Owned Gas'!C14 -> 5562.662 | F11: 0 | G11: 0.6476717051 | H11: 0 | I11: 0.3523282949 | K11: 0 | L11: 1
A12: ='Ex 1 HDD'!A15 -> 2020-01-01 | B12: ='Ex 4 Purchase Gas'!B15 -> 0 | C12: ='Ex 4 Purchase Gas'!C15 -> 11799.12 | D12: ='Ex 7 Co. Owned Gas'!B15 -> 0 | E12: ='Ex 7 Co. Owned Gas'!C15 -> 5433.616 | F12: 0 | G12: 0.6846922044 | H12: 0 | I12: 0.3153077956 | K12: 0 | L12: 1
A13: ='Ex 1 HDD'!A16 -> 2020-02-01 | B13: ='Ex 4 Purchase Gas'!B16 -> 0 | C13: ='Ex 4 Purchase Gas'!C16 -> 9734.01 | D13: ='Ex 7 Co. Owned Gas'!B16 -> 0 | E13: ='Ex 7 Co. Owned Gas'!C16 -> 5096.209 | F13: 0 | G13: 0.6563632 | H13: 0 | I13: 0.3436368 | K13: 0 | L13: 1
A14: ='Ex 1 HDD'!A17 -> 2020-03-01 | B14: ='Ex 4 Purchase Gas'!B17 -> 0 | C14: ='Ex 4 Purchase Gas'!C17 -> 8071.9 | D14: ='Ex 7 Co. Owned Gas'!B17 -> 0 | E14: ='Ex 7 Co. Owned Gas'!C17 -> 5320.388 | F14: 0 | G14: 0.6027274802 | H14: 0 | I14: 0.3972725198 | K14: 0 | L14: 1
A15: ='Ex 1 HDD'!A18 -> 2020-04-01 | B15: ='Ex 4 Purchase Gas'!B18 -> 0 | C15: ='Ex 4 Purchase Gas'!C18 -> 4812.29 | D15: ='Ex 7 Co. Owned Gas'!B18 -> 0 | E15: ='Ex 7 Co. Owned Gas'!C18 -> 5046.084 | F15: 0 | G15: 0.4881423651 | H15: 0 | I15: 0.5118576349 | K15: 0 | L15: 1
A16: ='Ex 1 HDD'!A19 -> 2020-05-01 | B16: ='Ex 4 Purchase Gas'!B19 -> 0 | C16: ='Ex 4 Purchase Gas'!C19 -> 2600.38 | D16: ='Ex 7 Co. Owned Gas'!B19 -> 0 | E16: ='Ex 7 Co. Owned Gas'!C19 -> 5120.67 | F16: 0 | G16: 0.3367909805 | H16: 0 | I16: 0.6632090195 | K16: 0 | L16: 1
A18: Q1 | B18: =SUM(B5:B7) -> 0 | C18: =SUM(C5:C7) -> 777.383 | D18: =SUM(D5:D7) -> 18188.161 | E18: =SUM(E5:E7) -> 17164.913 | F18: =IFERROR(B18/(B18+D18),0) -> 0 | G18: =C18/(C18+E18) -> 0.04332684067 | H18: =IFERROR(D18/(D18+B18),0) -> 1 | I18: =E18/(E18+C18) -> 0.9566731593 | K18: =F18+H18 -> 1 | L18: 1
A19: Q2 | B19: =SUM(B8:B10) -> 0 | C19: =SUM(C8:C10) -> 8653.784 | D19: =SUM(D8:D10) -> 0 | E19: =SUM(E8:E10) -> 16630.416 | F19: =IFERROR(B19/(B19+D19),0) -> 0 | G19: =C19/(C19+E19) -> 0.3422605422 | H19: =IFERROR(D19/(D19+B19),0) -> 0 | I19: =E19/(E19+C19) -> 0.6577394578 | K19: 0 | L19: 1
A20: Q3 | B20: =SUM(B11:B13) -> 0 | C20: =SUM(C11:C13) -> 31758.76 | D20: =SUM(D11:D13) -> 0 | E20: =SUM(E11:E13) -> 16092.487 | F20: 0 | G20: 0.6636976462 | H20: 0 | I20: 0.3363023538 | K20: 0 | L20: 1
A21: Q4 | B21: =SUM(B14:B16) -> 0 | C21: =SUM(C14:C16) -> 15484.57 | D21: =SUM(D14:D16) -> 0 | E21: =SUM(E14:E16) -> 15487.142 | F21: 0 | G21: 0.4999584782 | H21: 0 | I21: =E21/(E21+C21) -> 0.5000415218 | K21: =F21+H21 -> 0 | L21: =G21+I21 -> 1
B22: IRP | C22: Actual | D22: IRP | E22: Actual | F22: 0 | G22: Actual | H22: 0 | I22: Actual
F24: =F4 -> Actual Purchase as Percent of Total | G24: =G4 -> Normal Purchase as Percent of Total | H24: =H4 -> Actual Cost-of-Service as Percent of Total | I24: =I4 -> Normal Cost-of-Service as Percent of Total
E25: =A5 -> 2019-06-01 | F25: =VLOOKUP($E25,$A$5:$I$16,F$3,FALSE) -> 0 | G25: =VLOOKUP($E25,$A$5:$I$16,G$3,FALSE) -> 0.1191338075 | H25: 1 | I25: 0.8808661925 | K25: =F25+H25 -> 1 | L25: 1
E26: =A6 -> 2019-07-01 | F26: =VLOOKUP($E26,$A$5:$I$16,F$3,FALSE) -> 0 | G26: 0 | H26: 1 | I26: 1 | K26: 1 | L26: 1
E27: =A7 -> 2019-08-01 | F27: =VLOOKUP($E27,$A$5:$I$16,F$3,FALSE) -> 0 | G27: 0 | H27: 1 | I27: 1 | K27: 1 | L27: 1
E29: =A18 -> Q1 | F29: =VLOOKUP($E29,$A$18:$I$21,F$3,FALSE) -> 0 | G29: =VLOOKUP($E29,$A$18:$I$21,G$3,FALSE) -> 0.04332684067 | H29: 1 | I29: 0.9566731593 | K29: =F29+H29 -> 1 | L29: 1
E30: =A19 -> Q2 | F30: =VLOOKUP($E30,$A$18:$I$21,F$3,FALSE) -> 0 | G30: 0.3422605422 | H30: 0 | I30: 0.6577394578 | K30: 0 | L30: 1
E31: =A20 -> Q3 | F31: =VLOOKUP($E31,$A$18:$I$21,F$3,FALSE) -> 0 | G31: 0.6636976462 | H31: 0 | I31: 0.3363023538 | K31: 0 | L31: 1
E32: Q4 | F32: =VLOOKUP($E32,$A$18:$I$21,F$3,FALSE) -> 0 | G32: 0.4999584782 | H32: 0 | I32: 0.5000415218 | K32: 0 | L32: 1 | N32: =F32-G32 -> -0.4999584782 | O32: =I32-H32 -> 0.5000415218
F34: =AVERAGE((F25:F27)) -> 0 | G34: =AVERAGE((G25:G27)) -> 0.03971126916 | H34: =AVERAGE((H25:H27)) -> 1 | I34: =AVERAGE((I25:I27)) -> 0.9602887308

Sheet IRP Pruch Cover Sheet (hidden)
B1: 2 | C1: 3 | D1: 4 | E1: 5
B2: ='Normal Purchase %'!F24 -> Actual Purchase as Percent of Total | C2: ='Normal Purchase %'!G24 -> Normal Purchase as Percent of Total | D2: ='Normal Purchase %'!H24 -> Actual Cost-of-Service as Percent of Total | E2: ='Normal Purchase %'!I24 -> Normal Cost-of-Service as Percent of Total
A4: ='Normal Purchase %'!E25 -> 2019-06-01 | B4: =VLOOKUP($A4,'Normal Purchase %'!$E$25:$I$27,'IRP Pruch Cover Sheet'!B$1,FALSE) -> 0 | C4: =VLOOKUP($A4,'Normal Purchase %'!$E$25:$I$27,'IRP Pruch Cover Sheet'!C$1,FALSE) -> 0.1191338075 | D4: =VLOOKUP($A4,'Normal Purchase %'!$E$25:$I$27,'IRP Pruch Cover Sheet'!D$1,FALSE) -> 1 | E4: =VLOOKUP($A4,'Normal Purchase %'!$E$25:$I$27,'IRP Pruch Cover Sheet'!E$1,FALSE) -> 0.8808661925
A5: ='Normal Purchase %'!E26 -> 2019-07-01 | B5: =VLOOKUP($A5,'Normal Purchase %'!$E$25:$I$27,'IRP Pruch Cover Sheet'!B$1,FALSE) -> 0 | C5: =VLOOKUP($A5,'Normal Purchase %'!$E$25:$I$27,'IRP Pruch Cover Sheet'!C$1,FALSE) -> 0 | D5: =VLOOKUP($A5,'Normal Purchase %'!$E$25:$I$27,'IRP Pruch Cover Sheet'!D$1,FALSE) -> 1 | E5: =VLOOKUP($A5,'Normal Purchase %'!$E$25:$I$27,'IRP Pruch Cover Sheet'!E$1,FALSE) -> 1
A6: ='Normal Purchase %'!E27 -> 2019-08-01 | B6: =VLOOKUP($A6,'Normal Purchase %'!$E$25:$I$27,'IRP Pruch Cover Sheet'!B$1,FALSE) -> 0 | C6: =VLOOKUP($A6,'Normal Purchase %'!$E$25:$I$27,'IRP Pruch Cover Sheet'!C$1,FALSE) -> 0 | D6: =VLOOKUP($A6,'Normal Purchase %'!$E$25:$I$27,'IRP Pruch Cover Sheet'!D$1,FALSE) -> 1 | E6: =VLOOKUP($A6,'Normal Purchase %'!$E$25:$I$27,'IRP Pruch Cover Sheet'!E$1,FALSE) -> 1
A8: ='Normal Purchase %'!E29 -> Q1 | B8: =VLOOKUP($A$8,'Normal Purchase %'!$E$29:$I$32,'IRP Pruch Cover Sheet'!B$1,FALSE) -> 0 | C8: =VLOOKUP($A$8,'Normal Purchase %'!$E$29:$I$32,'IRP Pruch Cover Sheet'!C$1,FALSE) -> 0.04332684067 | D8: =VLOOKUP($A$8,'Normal Purchase %'!$E$29:$I$32,'IRP Pruch Cover Sheet'!D$1,FALSE) -> 1 | E8: =VLOOKUP($A$8,'Normal Purchase %'!$E$29:$I$32,'IRP Pruch Cover Sheet'!E$1,FALSE) -> 0.9566731593
C15: =B8-C8 -> -0.04332684067 | D15: =E8-D8 -> -0.04332684067

Sheet Shut-In (hidden)
A1: Actual Data from Jennifer Beasley
A2: Estimates…See Company Nom Groups herein
B4: June | C4: July | D4: August | E4: Total Dth for Quarter | H4: September | I4: October | J4: November | K4: Total Dth for Quarter
A5: Estimated Shut-in (dth/day) | B5: 0 | C5: 0 | D5: 13668.90484 | E5: =SUM(B5:D5) -> 13668.90484 | G5: Estimated Shut-in (dth/day) | H5: =H41/30 -> 0 | I5: =I41/30 -> 0 | J5: 0 | K5: =K41 -> 0
A6: Actual Shut-in (dth/day) | B6: 0 | C6: 0 | D6: 0 | E6: 0 | G6: Acutal Shut-in (dth/day) | H6: =H75/30 -> 0 | I6: =I75/31 -> 0 | J6: 0 | K6: =K75 -> 0
A10: 1 | B10: 59 | C10: =C5 -> 0 | D10: 0 | G10: =A10 -> 1
A11: 2 | B11: 59 | C11: 780 | D11: 0 | G11: =A11 -> 2
A12: 3 | B12: 59 | C12: 780 | D12: 0 | G12: 3
A13: 4 | B13: 59 | C13: 780 | D13: 0 | G13: 4
A14: 5 | B14: 59 | C14: 780 | D14: 0 | G14: 5
A15: 6 | B15: 59 | C15: 780 | D15: 0 | G15: 6
A16: 7 | B16: 59 | C16: =C11 -> 780 | D16: 0 | G16: 7
A17: 8 | B17: 59 | C17: 780 | D17: 0 | G17: 8
A18: 9 | B18: 59 | C18: 780 | D18: 0 | G18: 9
A19: 10 | B19: 59 | C19: =C14 -> 780 | D19: 0 | G19: 10
A20: 11 | B20: 59 | C20: 780 | D20: 0 | G20: 11
A21: 12 | B21: 59 | C21: 780 | D21: 0 | G21: 12
A22: 13 | B22: 59 | C22: =C17 -> 780 | D22: 0 | G22: 13
A23: 14 | B23: 59 | C23: 780 | D23: 0 | G23: 14
A24: 15 | B24: 59 | C24: 780 | D24: 0 | G24: 15
A25: 16 | B25: 59 | C25: =C20 -> 780 | D25: 0 | G25: 16
A26: 17 | B26: 59 | C26: 780 | D26: 0 | G26: 17
A27: 18 | B27: 59 | C27: 780 | D27: 0 | G27: 18
A28: 19 | B28: 59 | C28: =C23 -> 780 | D28: 0 | G28: 19
A29: 20 | B29: 59 | C29: 780 | D29: 0 | G29: 20
A30: 21 | B30: 59 | C30: 780 | D30: 0 | G30: 21
A31: 22 | B31: 59 | C31: =C26 -> 780 | D31: 0 | G31: 22
A32: 23 | B32: 59 | C32: 780 | D32: 0 | G32: 23
A33: 24 | B33: 59 | C33: 780 | D33: 0 | G33: 24
A34: 25 | B34: 59 | C34: =C29 -> 780 | D34: 0 | G34: 25
A35: 26 | B35: 59 | C35: 780 | D35: 0 | G35: 26
A36: 27 | B36: 59 | C36: 780 | D36: 0 | G36: 27
A37: 28 | B37: 59 | C37: =C32 -> 780 | D37: 0 | G37: 28
A38: 29 | B38: 59 | C38: 780 | D38: 0 | G38: 29
A39: 30 | B39: 59 | C39: 780 | D39: 0 | G39: 30
A40: 31 | B40: 0 | C40: =C35 -> 780 | D40: 0 | G40: 31
B41: =SUM(B10:B40) -> 1770 | C41: =SUM(C10:C40) -> 23400 | D41: =SUM(D10:D40) -> 0 | E41: =SUM(B41:D41) -> 25170 | H41: 0 | I41: 0 | J41: 0 | K41: =SUM(H41:J41) -> 0
A44: 1 | B44: 0 | C44: 0 | D44: 0 | G44: 1 | H44: 0 | I44: 0 | J44: 0
A45: 2 | B45: 0 | C45: 0 | D45: 0 | G45: 2 | H45: 0 | I45: 0 | J45: 0
A46: 3 | B46: 0 | C46: 0 | D46: 0 | G46: 3 | H46: 0 | I46: 0 | J46: 0
A47: 4 | B47: 0 | C47: 0 | D47: 5724 | G47: 4 | H47: 0 | I47: 0 | J47: 0
A48: 5 | B48: 0 | C48: 0 | D48: 5724 | G48: 5 | H48: 0 | I48: 0 | J48: 0
A49: 6 | B49: 0 | C49: 0 | D49: 5724 | G49: 6 | H49: 0 | I49: 0 | J49: 0
A50: 7 | B50: 0 | C50: 0 | D50: 5724 | G50: 7 | H50: 0 | I50: 0 | J50: 0
A51: 8 | B51: 0 | C51: 0 | D51: 5724 | G51: 8 | H51: 0 | I51: 0 | J51: 0
A52: 9 | B52: 0 | C52: 0 | D52: 5724 | G52: 9 | H52: 0 | I52: 0 | J52: 0
A53: 10 | B53: 0 | C53: 0 | D53: 5724 | G53: 10 | H53: 0 | I53: 0 | J53: 0
A54: 11 | B54: 0 | C54: 0 | D54: 5724 | G54: 11 | H54: 0 | I54: 0 | J54: 0
A55: 12 | B55: 0 | C55: 0 | D55: 5724 | G55: 12 | H55: 0 | I55: 0 | J55: 0
A56: 13 | B56: 0 | C56: 0 | D56: 5724 | G56: 13 | H56: 0 | I56: 0 | J56: 0
A57: 14 | B57: 0 | C57: 0 | D57: 5724 | G57: 14 | H57: 0 | I57: 0 | J57: 0
A58: 15 | B58: 0 | C58: 0 | D58: 5724 | G58: 15 | H58: 0 | I58: 0 | J58: 0
A59: 16 | B59: 0 | C59: 0 | D59: 5724 | G59: 16 | H59: 0 | I59: 0 | J59: 0
A60: 17 | B60: 0 | C60: 0 | D60: 5724 | G60: 17 | H60: 0 | I60: 0 | J60: 0
A61: 18 | B61: 0 | C61: 0 | D61: 5724 | G61: 18 | H61: 0 | I61: 0 | J61: 0
A62: 19 | B62: 0 | C62: 0 | D62: 5724 | G62: 19 | H62: 0 | I62: 0 | J62: 0
A63: 20 | B63: 0 | C63: 0 | D63: 5724 | G63: 20 | H63: 0 | I63: 0 | J63: 0
A64: 21 | B64: 0 | C64: 0 | D64: 5724 | G64: 21 | H64: 0 | I64: 0 | J64: 0
A65: 22 | B65: 0 | C65: 0 | D65: 5724 | G65: 22 | H65: 0 | I65: 0 | J65: 0
A66: 23 | B66: 0 | C66: 0 | D66: 5724 | G66: 23 | H66: 0 | I66: 0 | J66: 0
A67: 24 | B67: 0 | C67: 0 | D67: 5724 | G67: 24 | H67: 0 | I67: 0 | J67: 0
A68: 25 | B68: 0 | C68: 0 | D68: 5724 | G68: 25 | H68: 0 | I68: 0 | J68: 0
A69: 26 | B69: 0 | C69: 0 | D69: 5724 | G69: 26 | H69: 0 | I69: 0 | J69: 0
A70: 27 | B70: 0 | C70: 0 | D70: 5724 | G70: 27 | H70: 0 | I70: 0 | J70: 0
A71: 28 | B71: 0 | C71: 0 | D71: 5724 | G71: 28 | H71: 0 | I71: 0 | J71: 0
A72: 29 | B72: 0 | C72: 0 | D72: 5724 | G72: 29 | H72: 0 | I72: 0 | J72: 0
A73: 30 | B73: 0 | C73: 0 | D73: 5724 | G73: 30 | H73: 0 | I73: 0 | J73: 0
A74: 31 | B74: 0 | C74: 0 | D74: 5724 | G74: 31 | I74: 0
B75: =SUM(B44:B74) -> 0 | C75: =SUM(C44:C74) -> 0 | D75: =SUM(D44:D74) -> 160272 | E75: =SUM(B75:D75) -> 160272 | H75: =SUM(H44:H74) -> 0 | I75: =SUM(I44:I74) -> 0 | J75: =SUM(J44:J74) -> 0 | K75: =SUM(H75:J75) -> 0

Sheet Deleted Exhibit 2.5 (hidden)
O31: ='Exhibit 1.1'!O31 -> DEU Variance Exhibit | P31: ='Exhibit 1.1'!P31 -> Docket No. 19-057-01 | Q31: ='Exhibit 1.1'!Q31 -> Dominion Energy Utah
O32: 2.5

Sheet Deleted Exhibit 2.6 (hidden)
O31: ='Exhibit 1.1'!O31 -> DEU Variance Exhibit | P31: ='Exhibit 1.1'!P31 -> Docket No. 19-057-01 | Q31: ='Exhibit 1.1'!Q31 -> Dominion Energy Utah
O32: 2.6
